bitfinex/quotes_ETHUSD_20240924
["timestamp","ask_amount","ask_price","bid_price","bid_amount"]
[1727139021645,3.8328773,2635.4,2634.8,3.79523]
[1727139021941,0.0383673,2635.4,2634.8,3.79523]
[1727139022376,0.78313331,2635.8,2634.6,3.79562]
[1727139022377,0.77903856,2636.5,2635.9,0.4183]
[1727139022513,2.72581536,2637.3,2635.1,7.7852998]
[1727139022514,0.0383673,2637.8,2636.5,3.0]
[1727139022716,0.0383673,2637.8,2637.7,3.79118]
[1727139022968,0.0383673,2637.8,2637.7,4.34118]
[1727139023111,0.0383673,2637.8,2637.4,3.79157]
[1727139023312,0.0383673,2637.8,2637.1,0.0501]
[1727139023532,0.0383673,2637.8,2637.0,6.8926499]
[1727139023533,0.0383673,2637.8,2637.0,3.8926499]
[1727139023735,0.0383673,2637.8,2637.2,3.79188]
[1727139023949,0.0383673,2637.8,2637.5,3.79141]
[1727139024109,0.0383673,2637.8,2637.2,3.79188]
[1727139024326,0.0383673,2637.8,2636.9,3.79222]
[1727139024550,0.0383673,2637.8,2637.5,3.79146]
[1727139024925,0.0383673,2637.8,2637.4,3.79147]
[1727139025162,0.0383673,2637.8,2637.2,3.79182]
[1727139025460,0.0383673,2637.8,2637.1,3.79193]
[1727139025745,0.0383673,2637.8,2636.7,0.0501]
[1727139025746,0.0383673,2637.8,2636.8,3.8926499]
[1727139026157,0.0383673,2637.8,2637.4,3.79159]
[1727139026358,0.0383673,2637.8,2637.6,3.79123]
[1727139026578,0.0383673,2637.8,2637.4,3.79159]
[1727139026579,0.0383673,2637.8,2637.5,3.79136]
[1727139026713,0.0383673,2637.8,2637.4,3.79159]
[1727139027013,0.0383673,2637.8,2637.5,3.79142]
[1727139027215,0.0383673,2637.8,2637.4,3.79159]
[1727139027756,0.0383673,2637.8,2637.5,3.79141]
[1727139028059,0.0383673,2637.8,2637.7,3.79118]
[1727139029028,0.0383673,2637.8,2637.3,3.79172]
[1727139029363,0.0383673,2637.8,2637.6,3.79129]
[1727139029659,0.0383673,2637.8,2636.9,3.0]
[1727139029814,0.0383673,2637.8,2636.6,3.79266]
[1727139030013,0.0383673,2637.8,2637.2,3.7918]
[1727139030217,0.0383673,2637.8,2637.4,3.7916]
[1727139030813,0.0383673,2637.8,2637.5,3.79143]
[1727139031334,0.0383673,2637.8,2637.4,3.79159]
[1727139031854,0.0383673,2637.8,2637.6,3.7912]
[1727139032079,0.0383673,2637.8,2637.3,3.79162]
[1727139032363,0.0383673,2637.8,2637.4,3.79159]
[1727139033136,0.0383673,2637.8,2637.1,3.0]
[1727139033338,0.0383673,2637.8,2637.4,3.79149]
[1727139033549,0.0616886,2637.7,2637.2,3.79188]
[1727139034018,0.0616886,2637.7,2637.3,3.79165]
[1727139034218,0.0383673,2637.8,2637.3,3.79165]
[1727139034456,0.0616886,2637.7,2637.3,3.79165]
[1727139034762,0.0383673,2637.8,2637.2,3.79188]
[1727139034929,0.06166869,2637.6,2637.0,3.79213]
[1727139035112,4.30721884,2637.8,2637.0,3.79213]
[1727139035113,0.0616886,2637.7,2637.0,3.79213]
[1727139035317,0.0615763,2637.5,2637.0,3.79213]
[1727139035659,0.0615397,2637.4,2636.8,3.79247]
[1727139035906,0.0615397,2637.4,2636.4,0.0508]
[1727139036119,0.0615397,2637.4,2637.0,3.79215]
[1727139037485,0.0615397,2637.4,2636.9,3.79231]
[1727139038120,0.0615397,2637.4,2636.9,3.79233]
[1727139039091,0.0615397,2637.4,2636.8,3.79242]
[1727139039319,0.62196327,2637.4,2636.4,3.0508]
[1727139039529,0.62196327,2637.4,2634.8,1.89668325]
[1727139039530,3.79279,2636.6,2635.9,3.79365]
[1727139039925,0.06089965,2636.5,2635.9,3.79365]
[1727139041012,0.06089965,2636.5,2635.6,3.79418]
[1727139041013,3.79336,2636.2,2635.6,3.79418]
[1727139041217,3.79305,2636.4,2635.5,3.7942]
[1727139041218,3.85433868,2636.1,2635.5,3.7942]
[1727139041621,0.06083868,2636.1,2635.6,3.79418]
[1727139041805,0.06083868,2636.1,2636.0,3.79362]
[1727139042008,3.79309,2636.4,2635.8,3.79379]
[1727139042220,0.06081618,2636.3,2635.9,3.79366]
[1727139042444,11.96596,2636.7,2635.9,3.79366]
[1727139042445,15.75868,2636.7,2635.9,3.79366]
[1727139042646,0.06054766,2636.6,2636.0,3.79361]
[1727139043398,3.85332766,2636.6,2636.0,3.79361]
[1727139043548,3.85332766,2636.6,2635.8,3.79379]
[1727139043549,3.79294,2636.5,2635.8,3.79379]
[1727139043755,3.79294,2636.5,2635.9,3.79366]
[1727139043942,0.06037021,2636.4,2635.9,3.79366]
[1727139044142,0.06037021,2636.4,2635.5,3.0]
[1727139044143,0.06037021,2636.4,2636.0,3.79362]
[1727139044658,11.96596,2636.7,2635.9,3.79376]
[1727139044659,0.05838841,2636.3,2635.9,3.79376]
[1727139044854,3.7929,2636.5,2635.9,3.79376]
[1727139045167,3.7929,2636.5,2635.8,3.79387]
[1727139045168,0.05833751,2636.4,2635.8,3.79387]
[1727139045930,0.05833751,2636.4,2636.0,3.79359]
[1727139046129,0.05833751,2636.4,2636.3,3.79319]
[1727139046319,7.37,2637.1,2636.4,3.84373]
[1727139046320,11.16213,2637.1,2636.4,3.84373]
[1727139046656,12.27,2637.5,2636.8,3.79245]
[1727139046657,0.05066482,2637.0,2636.8,3.79245]
[1727139046824,3.79154,2637.5,2636.8,3.79245]
[1727139047014,0.05081108,2637.4,2636.8,3.79245]
[1727139047211,0.05081108,2637.4,2636.4,3.0508]
[1727139047212,0.05081108,2637.4,2636.6,3.7927]
[1727139047429,3.79205,2637.1,2636.6,3.7927]
[1727139047634,0.05064827,2637.0,2636.6,3.7927]
[1727139047922,0.05064827,2637.0,2636.4,6.84377]
[1727139048169,3.84294827,2637.0,2636.4,6.79297]
[1727139048310,0.05064827,2637.0,2636.4,6.79297]
[1727139048514,0.05064827,2637.0,2636.4,6.79294]
[1727139048723,3.79206,2637.1,2636.4,6.79294]
[1727139048951,3.79206,2637.1,2636.1,0.0508]
[1727139048952,3.84328014,2636.9,2636.2,6.79319]
[1727139049114,0.05095342,2637.0,2636.4,3.0]
[1727139049449,0.05090523,2636.9,2636.4,3.0]
[1727139049638,0.83290523,2636.9,2636.4,3.0]
[1727139049842,3.79248,2636.8,2636.4,3.0]
[1727139050047,0.05087371,2636.7,2636.4,3.0]
[1727139050264,0.782,2636.9,2636.4,3.0]
[1727139050464,0.05088531,2636.8,2636.4,3.0]
[1727139051017,0.782,2637.3,2636.7,3.79259]
[1727139051337,3.79138,2637.6,2636.9,3.7922]
[1727139051569,3.8294473,2637.8,2636.8,3.0508]
[1727139051570,3.7917,2637.4,2636.8,3.0508]
[1727139051728,3.79189,2637.3,2636.8,3.0]
[1727139052061,3.84312103,2637.3,2636.8,3.0]
[1727139052568,3.79192,2637.2,2636.6,3.0]
[1727139052770,0.05123103,2637.3,2636.6,3.0]
[1727139053078,3.84321549,2637.2,2636.8,3.0]
[1727139053231,3.79228,2637.0,2636.4,3.84383]
[1727139053564,0.05125575,2636.9,2636.4,3.0508]
[1727139053762,0.05125575,2636.9,2636.5,3.79278]
[1727139053972,3.79206,2637.1,2636.5,3.79278]
[1727139054129,4.5739,2637.2,2636.7,3.79261]
[1727139054130,0.05119518,2636.8,2636.7,3.79261]
[1727139054335,3.79171,2637.4,2636.8,3.79245]
[1727139054531,0.02,2637.6,2637.2,3.79181]
[1727139054845,7.37,2637.7,2637.2,3.79181]
[1727139054846,0.02,2637.7,2637.2,3.79181]
[1727139055044,0.0583673,2637.8,2637.5,3.79136]
[1727139055275,0.0583673,2637.8,2637.6,3.79123]
[1727139055596,0.0583673,2637.8,2637.7,3.79118]
[1727139057784,3.79011,2638.5,2637.9,3.79082]
[1727139058082,3.79011,2638.5,2637.6,6.8421]
[1727139058083,3.79049,2638.2,2637.6,6.8421]
[1727139058286,3.79049,2638.2,2637.6,3.7913]
[1727139058887,0.7971,2638.1,2637.3,0.0508]
[1727139059043,0.7971,2638.1,2637.2,6.79176]
[1727139059044,4.58774,2638.1,2637.2,6.79176]
[1727139059243,3.79107,2637.8,2637.2,6.79176]
[1727139059680,4.58774,2638.1,2637.4,3.0]
[1727139059993,4.58774,2638.1,2637.3,3.0]
[1727139060296,4.58774,2638.1,2637.6,3.79131]
[1727139060592,0.7971,2638.1,2637.2,3.79182]
[1727139061144,3.79109,2637.8,2637.2,3.79182]
[1727139061343,3.79109,2637.8,2636.7,3.79256]
[1727139061344,3.79157,2637.5,2636.7,3.79256]
[1727139061949,3.79157,2637.5,2636.9,3.79232]
[1727139062288,3.79157,2637.5,2636.6,0.0508]
[1727139062289,0.7971,2638.1,2637.0,3.79212]
[1727139062499,4.58773,2638.1,2636.9,3.79233]
[1727139062659,3.79105,2637.8,2636.9,3.0]
[1727139062993,3.79143,2637.6,2637.0,3.79218]
[1727139063376,3.79147,2637.5,2636.8,7.58474]
[1727139063681,3.79143,2637.6,2637.0,3.79215]
[1727139063873,3.79163,2637.4,2636.8,3.79237]
[1727139064081,3.79143,2637.6,2636.9,6.79224]
[1727139064449,3.79143,2637.6,2636.9,3.0]
[1727139064683,7.58343,2637.4,2636.9,3.0]
[1727139064888,3.7917,2637.4,2636.9,3.0]
[1727139065185,3.79137,2637.6,2636.9,3.0]
[1727139065389,0.7971,2637.7,2636.7,3.0]
[1727139065557,3.79195,2637.2,2636.7,3.0]
[1727139065962,3.79182,2637.3,2636.4,7.58594]
[1727139066196,3.79211,2637.1,2636.5,6.79288]
[1727139066394,3.79182,2637.3,2636.7,3.0]
[1727139066738,3.79153,2637.5,2636.9,3.79222]
[1727139067224,4.58833,2637.7,2637.0,3.79218]
[1727139067382,3.79149,2637.5,2636.8,3.7924]
[1727139067582,3.79149,2637.5,2636.8,3.79237]
[1727139067885,3.79149,2637.5,2636.8,7.58473]
[1727139068087,3.79176,2637.3,2636.8,3.79236]
[1727139068425,3.79167,2637.4,2636.8,3.79233]
[1727139068634,0.7971,2637.7,2637.0,3.79209]
[1727139068792,3.79114,2637.8,2637.2,3.79188]
[1727139069133,3.79081,2638.0,2637.2,3.79182]
[1727139069289,0.7971,2638.1,2637.5,3.79146]
[1727139069483,4.58771,2638.1,2637.4,3.79149]
[1727139069690,3.79081,2638.0,2637.4,3.79149]
[1727139070519,0.7971,2638.1,2637.3,3.0]
[1727139070819,3.79105,2637.8,2637.3,3.0]
[1727139071137,3.79156,2637.5,2637.0,0.0508]
[1727139071288,3.79156,2637.5,2636.7,8.66376463]
[1727139071289,0.7971,2637.4,2636.7,3.0508]
[1727139071480,0.7971,2637.4,2636.7,0.0508]
[1727139071681,3.79156,2637.5,2637.0,3.0]
[1727139072137,3.79156,2637.5,2636.8,3.0]
[1727139072419,3.79176,2637.3,2636.8,6.79247]
[1727139072620,3.79167,2637.4,2636.8,6.79245]
[1727139072822,7.37,2638.1,2637.1,3.0]
[1727139073122,3.79126,2637.7,2637.1,3.0]
[1727139073536,3.79191,2637.2,2636.7,0.0508]
[1727139073754,0.7971,2637.3,2636.6,6.79265]
[1727139073958,0.7971,2637.3,2636.9,3.0]
[1727139074109,0.7561,2637.6,2636.9,3.0]
[1727139074311,0.7561,2637.6,2637.0,3.79217]
[1727139074536,4.54752,2637.6,2637.0,3.79217]
[1727139075618,4.54752,2637.6,2636.9,3.0]
[1727139075924,3.79161,2637.4,2636.9,3.0]
[1727139076133,3.79161,2637.4,2636.7,3.0]
[1727139076447,3.79161,2637.4,2636.9,3.0]
[1727139077054,3.7918,2637.3,2636.9,3.0]
[1727139077213,3.79161,2637.4,2636.7,6.79248]
[1727139077408,3.79161,2637.4,2636.9,3.0]
[1727139078069,4.5475,2637.6,2636.9,3.0]
[1727139078233,3.79156,2637.5,2636.9,3.0]
[1727139078547,3.7911,2637.8,2637.3,3.79175]
[1727139078852,3.7911,2637.8,2637.1,0.0508]
[1727139079025,3.7911,2637.8,2637.3,3.79173]
[1727139079358,4.54692,2638.0,2637.4,3.0]
[1727139079561,3.7905,2638.2,2637.5,3.79137]
[1727139079742,0.7561,2638.3,2637.6,3.0]
[1727139079941,3.79069,2638.1,2637.6,3.0]
[1727139080462,3.79055,2638.2,2637.6,6.79123]
[1727139080825,3.79022,2638.4,2637.6,6.79123]
[1727139080826,3.79021,2638.4,2637.7,3.84196]
[1727139081337,3.79021,2638.4,2637.7,0.0508]
[1727139081527,3.79055,2638.2,2637.6,6.79123]
[1727139081730,3.79055,2638.2,2637.6,10.58245]
[1727139082130,3.79021,2638.4,2637.7,3.79108]
[1727139082336,3.79032,2638.3,2637.7,3.79108]
[1727139082545,3.79021,2638.4,2637.7,3.79108]
[1727139082760,4.60025466,2638.6,2637.7,3.88176549]
[1727139083062,0.0383673,2638.6,2638.5,6.84083]
[1727139083213,0.0383673,2638.6,2638.5,10.72259549]
[1727139083413,0.0383673,2638.6,2638.5,17.74989849]
[1727139083763,0.0383673,2638.6,2638.5,15.86619849]
[1727139086824,0.0383673,2638.6,2638.3,3.79018]
[1727139087156,0.0383673,2638.6,2638.4,3.79007]
[1727139087358,0.0383673,2638.6,2638.5,3.79003]
[1727139087569,0.0383673,2638.6,2638.5,17.62732049]
[1727139087771,0.0383673,2638.6,2638.5,23.15172349]
[1727139087993,0.0383673,2639.4,2639.3,3.78888]
[1727139088141,0.0383673,2639.4,2639.3,3.83968]
[1727139088831,0.0383673,2639.4,2639.1,3.78903]
[1727139089051,0.0383673,2639.4,2639.2,6.78902]
[1727139089472,0.0383673,2639.4,2639.3,3.78888]
[1727139089674,0.0383673,2639.4,2639.3,6.78888]
[1727139090393,0.0383673,2639.4,2639.1,3.78903]
[1727139090394,0.0383673,2639.4,2639.2,3.0]
[1727139090531,0.0383673,2639.4,2639.3,3.78888]
[1727139090840,0.0383673,2639.4,2639.3,6.78888]
[1727139093446,0.0383673,2639.4,2639.2,3.0]
[1727139093637,0.0383673,2639.4,2638.9,3.78935]
[1727139093834,0.0383673,2639.4,2638.7,3.84049]
[1727139093835,0.0383673,2639.4,2639.2,3.789]
[1727139094036,0.0383673,2639.4,2638.9,3.78935]
[1727139094476,0.0383673,2639.4,2639.0,3.78927]
[1727139095471,0.0383673,2639.4,2639.1,7.57823]
[1727139095677,0.0383673,2639.4,2639.1,3.78908]
[1727139095838,0.0383673,2639.4,2639.1,3.78906]
[1727139096558,0.0383673,2639.4,2639.0,3.0]
[1727139097014,0.8258,2639.2,2638.7,3.0]
[1727139097313,0.8258,2639.2,2638.7,6.78972]
[1727139097800,0.8258,2639.2,2638.9,3.0]
[1727139098006,0.0383673,2639.4,2638.9,6.78943]
[1727139098304,0.0383673,2639.4,2638.9,6.78936]
[1727139098628,0.03747152,2639.4,2638.9,10.57871]
[1727139098912,0.03747152,2639.4,2638.9,6.78935]
[1727139099080,0.03747152,2639.4,2638.6,3.88176549]
[1727139099081,3.78914,2639.2,2638.6,3.0]
[1727139099278,0.03747152,2639.4,2638.9,3.78944]
[1727139100388,0.03747152,2639.4,2639.2,3.78902]
[1727139100592,0.03747152,2639.4,2639.0,7.57851]
[1727139100902,0.03747152,2639.4,2639.1,3.78915]
[1727139101405,0.03747152,2639.4,2639.0,7.57844]
[1727139101615,0.03747152,2639.4,2639.0,3.78922]
[1727139101813,0.03747152,2639.4,2639.0,3.78921]
[1727139102106,3.82632152,2639.4,2638.9,3.0]
[1727139102309,0.03747152,2639.4,2639.0,3.78922]
[1727139102472,0.03747152,2639.4,2639.0,7.57841]
[1727139102673,0.03747152,2639.4,2639.0,3.78919]
[1727139103411,0.03747152,2639.4,2639.0,7.57841]
[1727139103711,0.03747152,2639.4,2639.0,7.57842]
[1727139103937,0.03747152,2639.4,2639.0,3.78919]
[1727139104139,0.03747152,2639.4,2639.2,3.78893]
[1727139104297,0.03747152,2639.4,2639.3,6.78888]
[1727139104498,0.03747152,2639.4,2639.3,6.83968]
[1727139104737,0.03747152,2639.4,2639.3,7.38968]
[1727139105214,0.03747152,2639.4,2639.3,23.638244]
[1727139105541,0.0383673,2640.2,2639.6,3.55]
[1727139105745,0.0383673,2640.2,2640.1,3.78773]
[1727139106315,0.0383673,2640.2,2640.1,11.895167]
[1727139106637,0.0383673,2640.2,2640.1,17.32226]
[1727139107047,0.0383673,2640.2,2640.1,15.862931]
[1727139107934,0.0383673,2640.2,2640.1,9.425626]
[1727139108922,0.0383673,2640.2,2640.1,7.33773]
[1727139109119,0.0383673,2640.2,2640.1,10.529533]
[1727139111538,0.0383673,2640.2,2640.1,6.78773]
[1727139111742,0.0383673,2640.2,2639.9,3.78789]
[1727139111949,0.0383673,2640.2,2640.1,3.78773]
[1727139112905,0.0383673,2640.2,2640.1,6.78773]
[1727139114848,0.08649794,2640.2,2640.1,6.78773]
[1727139115145,0.08650347,2640.2,2640.1,6.78773]
[1727139116149,0.08650347,2640.2,2640.0,3.0]
[1727139116471,0.08650347,2640.2,2639.5,3.78846]
[1727139116472,4.68342347,2640.2,2639.5,3.78846]
[1727139116652,0.89570347,2640.2,2639.0,3.93256549]
[1727139116819,3.788,2640.0,2639.3,3.78876]
[1727139117147,3.78852,2639.6,2638.9,7.56936]
[1727139117310,3.78836,2639.7,2639.1,3.78903]
[1727139117515,0.04785579,2639.6,2639.1,3.78903]
[1727139117914,0.04785579,2639.6,2639.2,3.78892]
[1727139118216,3.78826,2639.8,2639.2,3.0]
[1727139118425,0.04768952,2639.5,2639.3,0.0508]
[1727139118730,0.04766964,2639.4,2639.3,7.57755]
[1727139118941,0.04766964,2639.4,2639.3,10.57755]
[1727139119121,3.78788,2640.0,2639.4,3.78863]
[1727139119325,0.04755363,2639.9,2639.4,3.78863]
[1727139119518,4.6352373,2640.2,2639.5,3.78858]
[1727139119716,4.6352373,2640.2,2639.6,3.78844]
[1727139119717,0.04758138,2640.1,2639.6,3.78844]
[1727139120262,0.04758138,2640.1,2639.5,3.78858]
[1727139120563,0.04758138,2640.1,2639.5,7.57709]
[1727139120712,0.04758138,2640.1,2639.5,3.78851]
[1727139120908,0.61056047,2640.1,2639.1,3.78911]
[1727139121148,0.8167,2639.7,2639.0,3.0]
[1727139121453,3.78854,2639.6,2639.0,3.0]
[1727139121650,7.62406349,2639.6,2639.0,3.0]
[1727139121837,3.78877,2639.4,2638.8,3.78957]
[1727139122254,0.046902,2639.3,2638.8,3.78957]
[1727139122957,0.8167,2639.2,2638.6,3.78988]
[1727139123121,0.8167,2639.2,2638.8,3.78949]
[1727139123657,0.8167,2639.7,2639.1,3.78917]
[1727139123955,0.04665269,2639.6,2639.1,3.78917]
[1727139125040,0.04665269,2639.6,2638.9,3.78936]
[1727139125245,0.04665269,2639.6,2638.6,3.78985]
[1727139125246,3.78913,2639.2,2638.6,3.78985]
[1727139125459,3.78913,2639.2,2638.4,6.79015]
[1727139125756,0.8167,2639.1,2638.8,3.78956]
[1727139125956,0.8167,2639.4,2638.7,3.0]
[1727139126258,0.8167,2639.4,2639.1,3.78908]
[1727139126463,0.8167,2639.7,2639.3,3.78881]
[1727139126670,0.8167,2640.1,2639.5,3.78859]
[1727139126963,0.8167,2640.1,2639.9,3.788]
[1727139127136,0.8167,2640.1,2639.8,3.78814]
[1727139127334,0.8167,2640.1,2640.0,3.78787]
[1727139128555,0.8167,2640.1,2639.9,3.788]
[1727139129063,0.8167,2640.4,2639.9,3.788]
[1727139129260,0.8167,2640.4,2640.1,3.78773]
[1727139129468,0.8167,2640.7,2640.1,3.78773]
[1727139131319,0.8167,2640.7,2640.0,6.78786]
[1727139131542,0.8167,2640.7,2640.1,3.78773]
[1727139132770,4.60358,2640.7,2640.1,3.78773]
[1727139134589,4.60358,2640.7,2640.0,6.78786]
[1727139134960,4.60364,2640.7,2639.8,6.78806]
[1727139135209,0.8273,2640.1,2639.5,3.78858]
[1727139135410,0.8273,2640.1,2639.0,3.93256549]
[1727139135711,0.8273,2640.1,2639.7,3.7882]
[1727139136698,3.78798,2640.0,2639.3,3.78885]
[1727139137004,4.61541,2639.9,2639.3,3.78875]
[1727139137174,3.78825,2639.8,2639.1,7.57813]
[1727139137579,3.78825,2639.8,2639.1,3.78906]
[1727139137825,0.09471204,2639.8,2638.9,3.78938]
[1727139137992,3.7886,2639.5,2638.9,3.78932]
[1727139138313,0.8273,2639.7,2638.7,3.78972]
[1727139138314,3.78889,2639.3,2638.7,3.78966]
[1727139138481,0.8273,2639.2,2638.6,3.78986]
[1727139138680,0.8273,2639.2,2638.4,0.0508]
[1727139138681,3.78927,2639.1,2638.4,3.79013]
[1727139138896,0.8273,2638.7,2638.1,3.79055]
[1727139139415,0.8273,2638.7,2638.3,3.79028]
[1727139140583,0.8273,2638.7,2638.1,3.79055]
[1727139140964,4.61711,2638.7,2638.1,3.79055]
[1727139141408,0.8273,2638.7,2638.1,3.79055]
[1727139142193,0.8273,2638.7,2638.2,3.0]
[1727139142492,0.8273,2638.7,2638.2,3.79042]
[1727139142834,0.8273,2638.7,2638.3,3.0]
[1727139143937,0.8273,2638.7,2638.4,3.79007]
[1727139145146,0.8273,2638.7,2638.6,3.78988]
[1727139145467,0.8273,2639.0,2638.7,3.78966]
[1727139145606,0.8273,2639.0,2638.7,3.78962]
[1727139146746,0.8273,2639.0,2638.6,3.0]
[1727139147605,0.8273,2639.0,2638.1,3.79057]
[1727139147606,3.78975,2638.7,2638.1,3.79057]
[1727139147807,3.78975,2638.7,2638.1,7.58108]
[1727139148008,0.8273,2638.9,2638.4,3.79003]
[1727139148243,0.8273,2638.9,2638.6,3.78976]
[1727139148450,0.8273,2639.4,2638.8,3.78954]
[1727139148614,0.8273,2639.8,2639.4,3.78873]
[1727139150223,0.8273,2639.8,2639.6,3.78844]
[1727139150422,3.8259973,2640.2,2639.6,3.78844]
[1727139150423,0.0383673,2640.2,2639.7,3.78818]
[1727139150671,0.0383673,2640.2,2639.8,6.78813]
[1727139151650,0.0383673,2640.2,2639.8,3.0]
[1727139154069,0.0383673,2640.2,2639.5,3.78857]
[1727139154227,3.8259573,2640.2,2639.6,3.0]
[1727139154721,3.8259573,2640.2,2639.6,3.78845]
[1727139154930,0.0383673,2640.2,2639.6,3.78845]
[1727139155160,0.0383673,2640.2,2639.8,3.78814]
[1727139155668,0.0383673,2640.2,2639.7,3.78828]
[1727139156242,0.0383673,2640.2,2639.6,3.78845]
[1727139157164,3.8260873,2640.2,2639.4,10.67040549]
[1727139157322,0.0383673,2640.2,2639.6,3.78838]
[1727139157527,0.0383673,2640.2,2639.6,3.78833]
[1727139157825,3.8260473,2640.2,2639.6,3.78833]
[1727139158755,3.8260473,2640.2,2638.8,7.57909]
[1727139158756,0.8273,2639.5,2638.8,7.57909]
[1727139159076,3.88356485,2639.4,2638.7,3.78964]
[1727139159229,3.88356485,2639.4,2638.2,7.67216549]
[1727139159230,0.8273,2639.1,2638.2,3.88176549]
[1727139159431,4.61648,2639.1,2638.4,3.79008]
[1727139159658,4.61648,2639.1,2638.1,3.8308]
[1727139159659,3.7897,2638.8,2638.1,3.7906]
[1727139159861,0.8273,2638.7,2638.1,3.7906]
[1727139160168,0.8273,2638.7,2637.8,3.88176549]
[1727139160169,0.09474821,2638.6,2637.9,3.79076]
[1727139160370,3.78991,2638.6,2637.9,3.79076]
[1727139160728,0.8273,2638.7,2638.1,3.7905]
[1727139160936,0.8273,2638.7,2638.2,6.79044]
[1727139161135,0.8273,2638.7,2638.3,3.79026]
[1727139161557,0.8273,2638.7,2638.2,3.0]
[1727139161873,0.8273,2638.7,2638.2,6.79045]
[1727139162374,0.8273,2638.7,2638.2,3.0]
[1727139162540,3.7899,2638.6,2638.0,3.0]
[1727139163428,0.8273,2638.3,2637.8,3.79101]
[1727139163947,0.8273,2638.3,2637.7,3.79111]
[1727139164687,0.8273,2638.3,2637.8,3.0]
[1727139166133,0.8273,2638.3,2637.8,6.79102]
[1727139166469,0.8273,2638.3,2637.9,3.79086]
[1727139166829,0.8273,2638.3,2638.1,3.79058]
[1727139167233,0.8273,2638.3,2637.9,7.58163]
[1727139167643,0.8273,2638.3,2637.9,3.79077]
[1727139168053,0.8273,2638.3,2638.1,3.79058]
[1727139168281,0.8273,2638.3,2638.1,3.7905]
[1727139168856,0.7927,2638.8,2637.8,6.88176549]
[1727139169058,0.7927,2638.8,2638.4,3.79015]
[1727139169573,0.7927,2638.8,2638.5,3.78993]
[1727139169781,0.7927,2638.8,2638.4,3.79015]
[1727139169782,0.7927,2638.8,2638.6,3.78984]
[1727139170247,0.7927,2638.8,2638.4,3.79015]
[1727139170451,0.7427,2638.8,2638.4,3.79015]
[1727139170999,11.10895,2639.3,2638.7,3.78974]
[1727139171486,3.78912,2639.2,2638.5,3.78996]
[1727139171783,3.78912,2639.2,2638.6,3.78986]
[1727139172149,11.10895,2639.3,2638.6,3.78986]
[1727139172415,11.10895,2639.3,2637.4,0.1008]
[1727139172416,3.7895,2638.9,2637.4,0.1008]
[1727139172699,3.78967,2638.8,2638.1,3.79052]
[1727139172849,3.78903,2639.2,2638.5,3.79001]
[1727139173050,3.78903,2639.2,2638.4,3.79014]
[1727139173345,3.78935,2639.0,2638.4,3.79014]
[1727139173549,0.7927,2638.9,2638.4,3.79014]
[1727139174275,0.7927,2638.9,2638.2,3.7904]
[1727139174477,4.58225,2638.9,2638.2,7.58077]
[1727139174666,4.58225,2638.9,2638.2,3.79037]
[1727139175146,4.58225,2638.9,2638.2,7.58073]
[1727139175912,4.58225,2638.9,2638.3,3.79029]
[1727139176902,4.58225,2638.9,2638.2,7.58072]
[1727139177103,0.7927,2638.9,2638.2,3.79036]
[1727139177306,3.78963,2638.8,2638.2,3.79036]
[1727139177522,3.78963,2638.8,2638.0,6.89146]
[1727139177523,3.78983,2638.7,2638.0,6.89146]
[1727139177671,3.79007,2638.5,2637.9,6.79087]
[1727139177868,0.7927,2638.4,2637.9,3.0]
[1727139178114,4.58291,2638.4,2637.9,3.0]
[1727139178404,4.58291,2638.4,2637.7,3.79117]
[1727139178405,3.7904,2638.3,2637.7,3.79117]
[1727139178569,3.7904,2638.3,2637.6,3.79125]
[1727139178570,4.58291,2638.4,2637.8,3.79091]
[1727139178980,4.58291,2638.4,2637.6,3.79128]
[1727139179256,3.79047,2638.2,2637.4,3.79156]
[1727139179413,3.79084,2638.0,2637.4,3.79156]
[1727139180005,3.79084,2638.0,2637.4,3.79153]
[1727139180208,0.8182,2638.1,2637.8,3.15316512]
[1727139180370,0.8182,2638.4,2638.0,3.79066]
[1727139180570,0.8182,2638.4,2637.6,0.1008]
[1727139180571,0.8182,2638.4,2638.1,3.79057]
[1727139181107,0.8182,2638.4,2637.9,3.79087]
[1727139181482,0.8182,2638.4,2637.9,7.58167]
[1727139181804,0.8182,2638.4,2637.9,3.7908]
[1727139182827,3.79034,2638.3,2637.7,3.79113]
[1727139183051,3.79034,2638.3,2637.2,11.27186]
[1727139183052,3.79098,2637.9,2637.3,3.79165]
[1727139183334,3.8856194,2638.0,2637.4,3.79159]
[1727139183632,0.8182,2638.1,2637.5,3.79133]
[1727139183832,4.60881,2638.1,2637.5,3.79134]
[1727139184219,0.8182,2638.1,2637.5,7.58271]
[1727139184421,0.8182,2638.1,2637.5,3.79134]
[1727139184621,0.8182,2638.1,2637.5,7.5827]
[1727139184850,0.8182,2638.1,2637.9,3.79087]
[1727139184997,3.78989,2638.6,2637.9,3.79087]
[1727139184998,4.60826,2638.5,2637.9,3.79087]
[1727139185340,4.60826,2638.5,2637.8,3.79093]
[1727139185694,0.8182,2638.5,2637.8,3.79093]
[1727139185894,0.8182,2638.5,2638.0,3.79075]
[1727139187028,0.8182,2638.5,2637.9,3.0]
[1727139187029,3.79019,2638.4,2637.9,3.0]
[1727139188022,0.8182,2638.5,2638.0,3.79065]
[1727139188535,0.8182,2638.5,2638.2,3.79034]
[1727139189131,0.8182,2638.5,2638.1,6.7906]
[1727139189690,0.04282129,2638.4,2638.1,6.7906]
[1727139190441,0.04282129,2638.4,2638.0,3.0]
[1727139190648,0.04282129,2638.4,2637.8,3.0]
[1727139190794,0.04282129,2638.4,2637.9,3.79076]
[1727139191200,0.04282129,2638.4,2638.1,3.79052]
[1727139191993,0.04282129,2638.4,2638.0,3.0]
[1727139192304,0.04282129,2638.4,2638.0,6.79068]